bitfinex/quotes_BTCUSD_20251113
["timestamp","ask_amount","ask_price","bid_price","bid_amount"]
[1763028513652,1e-08,102990.0,102980.0,0.29133054]
[1763028513834,1e-08,102990.0,102980.0,0.9105883]
[1763028514034,1e-08,102990.0,102980.0,0.9305883]
[1763028514465,1e-08,102990.0,102980.0,1.2535883]
[1763028520737,1e-08,102990.0,102980.0,1.29700704]
[1763028521681,1e-08,102990.0,102980.0,3.64535845]
[1763028522103,0.0002,103000.0,102990.0,3.07920123]
[1763028522313,1e-08,103000.0,102990.0,3.74743153]
[1763028522528,1e-08,103000.0,102990.0,3.4190801]
[1763028522713,1e-08,103000.0,102990.0,3.4682083]
[1763028522913,1e-08,103000.0,102990.0,2.87103054]
[1763028523120,1e-08,103000.0,102990.0,3.4682083]
[1763028523501,1e-08,103000.0,102990.0,3.4702083]
[1763028523697,1e-08,103000.0,102990.0,3.4682083]
[1763028524097,1e-08,103000.0,102990.0,3.4712083]
[1763028524300,1e-08,103000.0,102990.0,3.4742083]
[1763028524596,1e-08,103000.0,102990.0,3.48420829]
[1763028527568,1e-08,103000.0,102990.0,3.98279717]
[1763028528776,1e-08,103000.0,102990.0,4.01255972]
[1763028529176,1e-08,103000.0,102990.0,3.11679308]
[1763028530425,0.0002,103040.0,103030.0,0.51711821]
[1763028530624,0.00066606,103040.0,103030.0,0.63048821]
[1763028530836,0.00164332,103040.0,103030.0,0.63048821]
[1763028531076,0.00164332,103040.0,103030.0,0.65961161]
[1763028531278,0.00164332,103040.0,103030.0,0.95820049]
[1763028531715,0.00164332,103040.0,103030.0,0.66061161]
[1763028531911,0.00164332,103040.0,103030.0,0.95920049]
[1763028533216,0.00164332,103040.0,103030.0,0.96120049]
[1763028533631,0.00164332,103040.0,103030.0,0.66261161]
[1763028533838,0.00164332,103040.0,103030.0,0.96120049]
[1763028540833,0.00164332,103040.0,103030.0,0.66261161]
[1763028541039,0.00164332,103040.0,103030.0,0.96120049]
[1763028541405,0.00164332,103040.0,103030.0,0.94120049]
[1763028541608,0.00164332,103040.0,103030.0,0.96120049]
[1763028545728,0.00164332,103040.0,103030.0,0.94120049]
[1763028545931,0.00164332,103040.0,103030.0,0.96120049]
[1763028552800,0.80429045,103040.0,103030.0,0.0321234]
[1763028553041,0.84479114,103040.0,103030.0,0.04508]
[1763028553911,0.54620226,103040.0,103030.0,0.06308]
[1763028554741,0.54620226,103040.0,103030.0,0.25719821]
[1763028554945,0.54620226,103040.0,103030.0,0.04308]
[1763028555373,0.84479114,103040.0,103030.0,0.04308]
[1763028556236,0.84479114,103040.0,103030.0,0.08993]
[1763028556237,0.52346226,103040.0,103030.0,0.08993]
[1763028556469,0.52346226,103040.0,103030.0,0.28404821]
[1763028556681,0.22487338,103040.0,103030.0,0.28404821]
[1763028556897,0.52346226,103040.0,103030.0,0.28404821]
[1763028557510,0.49433157,103040.0,103030.0,0.28404821]
[1763028558013,0.00164332,103040.0,103030.0,0.30723821]
[1763028558213,0.00164332,103040.0,103030.0,0.60582709]
[1763028559250,0.49433157,103040.0,103030.0,0.24845821]
[1763028559468,0.20711269,103040.0,103030.0,0.26845821]
[1763028560501,0.20711269,103040.0,103030.0,0.28404821]
[1763028560892,0.00164332,103040.0,103030.0,0.30723821]
[1763028561101,0.19574269,103040.0,103030.0,0.30723821]
[1763028561398,0.00164332,103040.0,103030.0,0.30723821]
[1763028561808,0.19574269,103040.0,103030.0,0.30723821]
[1763028562728,0.00164332,103040.0,103030.0,0.30723821]
[1763028563356,0.00164332,103040.0,103030.0,0.58582709]
[1763028563776,0.00164332,103040.0,103030.0,0.60582709]
[1763028564427,0.00164332,103040.0,103030.0,0.92882709]
[1763028565215,0.00164332,103040.0,103030.0,0.90882709]
[1763028565455,0.00164332,103040.0,103030.0,0.92882709]
[1763028567182,0.00164332,103040.0,103030.0,0.90882709]
[1763028567424,0.00164332,103040.0,103030.0,0.92882709]
[1763028571660,0.00164332,103040.0,103030.0,0.90882709]
[1763028571874,0.00164332,103040.0,103030.0,0.92882709]
[1763028572462,0.19574269,103040.0,103030.0,0.92882709]
[1763028572663,0.00164332,103040.0,103030.0,0.92882709]
[1763028574958,0.00164332,103040.0,103030.0,1.07800177]
[1763028575325,0.19574269,103040.0,103030.0,1.05800177]
[1763028575598,0.19574269,103040.0,103030.0,1.07800177]
[1763028575828,0.19574269,103040.0,103030.0,0.63023821]
[1763028576051,0.66624625,103040.0,103030.0,0.51811821]
[1763028576246,0.65487625,103040.0,103030.0,0.06308]
[1763028576420,0.65487625,103040.0,103030.0,0.04308]
[1763028576626,0.66624625,103040.0,103030.0,0.04308]
[1763028577038,0.66624625,103040.0,103030.0,0.23719821]
[1763028577238,0.47214688,103040.0,103030.0,0.25719821]
[1763028578279,0.66624625,103040.0,103030.0,0.23719821]
[1763028578826,0.66624625,103040.0,103030.0,0.06308]
[1763028579004,0.66624625,103040.0,103030.0,0.25719821]
[1763028581208,0.21848269,103040.0,103030.0,0.25719821]
[1763028581447,0.66624625,103040.0,103030.0,0.25719821]
[1763028581633,0.02438332,103040.0,103030.0,0.25719821]
[1763028581872,0.66624625,103040.0,103030.0,0.25719821]
[1763028582685,0.66624625,103040.0,103030.0,0.23719821]
[1763028582849,0.66624625,103040.0,103030.0,0.25719821]
[1763028583056,0.21848269,103040.0,103030.0,0.25719821]
[1763028583257,0.44236447,103040.0,103030.0,0.25719821]
[1763028583682,0.66624625,103040.0,103030.0,0.06308]
[1763028584519,0.66624625,103040.0,103030.0,0.25719821]
[1763028584986,0.21848269,103040.0,103030.0,0.25719821]
[1763028585205,0.66624625,103040.0,103030.0,0.25719821]
[1763028585431,0.44236447,103040.0,103030.0,0.25719821]
[1763028585678,0.43099447,103040.0,103030.0,0.25719821]
[1763028585911,0.44236447,103040.0,103030.0,0.25719821]
[1763028586392,0.66624625,103040.0,103030.0,0.04308]
[1763028586592,0.66624625,103040.0,103030.0,0.23719821]
[1763028586799,0.47214688,103040.0,103030.0,0.25719821]
[1763028587309,0.66624625,103040.0,103030.0,0.25719821]
[1763028587626,0.44236447,103040.0,103030.0,0.25719821]
[1763028587835,0.00164332,103040.0,103030.0,0.51290999]
[1763028588202,0.00164332,103040.0,103030.0,0.75679177]
[1763028588424,0.00164332,103040.0,103030.0,1.07979177]
[1763028588641,0.00164332,103040.0,103030.0,0.85590999]
[1763028588842,0.00164332,103040.0,103030.0,1.07979177]
[1763028588997,0.00164332,103040.0,103030.0,0.85590999]
[1763028589199,0.00164332,103040.0,103030.0,1.07979177]
[1763028591355,0.00164332,103040.0,103030.0,0.85590999]
[1763028591553,0.00164332,103040.0,103030.0,1.07979177]
[1763028596262,0.44236447,103040.0,103030.0,0.38608]
[1763028596470,0.00164332,103040.0,103030.0,0.30902821]
[1763028596680,0.00164332,103040.0,103030.0,1.30367355]
[1763028596887,0.00164332,103040.0,103030.0,1.05979177]
[1763028597126,0.00164332,103040.0,103030.0,1.07979177]
[1763028600615,0.00109878,103040.0,103030.0,1.07979177]
[1763028601761,0.00109878,103040.0,103030.0,0.63202821]
[1763028601961,0.00109878,103040.0,103030.0,1.07979177]
[1763028605789,0.00109878,103040.0,103030.0,1.30367355]
[1763028606862,0.00109878,103040.0,103030.0,1.07979177]
[1763028608888,0.00109878,103040.0,103030.0,1.05605177]
[1763028609321,0.01246878,103040.0,103030.0,0.59165821]
[1763028609493,0.01246878,103040.0,103030.0,1.03942177]
[1763028609705,0.00109878,103040.0,103030.0,1.07855177]
[1763028609945,0.00109878,103040.0,103030.0,1.05574177]
[1763028610126,0.00109878,103040.0,103030.0,1.07855177]
[1763028620821,0.00109878,103040.0,103030.0,0.63078821]
[1763028621034,0.00109878,103040.0,103030.0,1.07855177]
[1763028621890,0.00109878,103040.0,103030.0,0.63078821]
[1763028622107,0.00109878,103040.0,103030.0,1.07855177]
[1763028622758,0.00109878,103040.0,103030.0,1.30243355]
[1763028622975,0.00109878,103040.0,103030.0,1.07855177]
[1763028625047,0.00109878,103040.0,103030.0,1.97407889]
[1763028625404,0.00109878,103040.0,103030.0,2.00320229]
[1763028626226,0.00109878,103040.0,103030.0,2.00420229]
[1763028626624,0.00109878,103040.0,103030.0,2.00320229]
[1763028627029,0.00109878,103040.0,103030.0,2.00520229]
[1763028627431,1e-08,103040.0,103030.0,2.05862102]
[1763028627660,1e-08,103040.0,103030.0,4.06892912]
[1763028627864,1e-08,103050.0,103040.0,0.81100811]
[1763028628087,0.00013977,103050.0,103040.0,4.2245644]
[1763028628294,1e-08,103050.0,103040.0,2.92585309]
[1763028628494,1e-08,103050.0,103040.0,4.27322615]
[1763028628695,1e-08,103060.0,103050.0,0.56049928]
[1763028628918,1e-08,103060.0,103050.0,4.16310806]
[1763028629106,1e-08,103060.0,103050.0,4.20031922]
[1763028629456,1e-08,103060.0,103050.0,4.20420083]
[1763028629855,1e-08,103060.0,103050.0,4.15698966]
[1763028630065,1e-08,103060.0,103050.0,4.14968156]
[1763028630690,1e-08,103060.0,103050.0,4.13968157]
[1763028631099,1e-08,103060.0,103050.0,4.14268157]
[1763028632791,1e-08,103060.0,103050.0,1.69491801]
[1763028633867,1e-08,103060.0,103050.0,2.14268157]
[1763028634263,0.00048845,103060.0,103050.0,2.14268157]
[1763028635116,0.00048845,103060.0,103050.0,0.79939089]
[1763028635287,0.00048845,103060.0,103050.0,1.39590513]
[1763028636083,0.00048845,103060.0,103050.0,1.05422927]
[1763028636913,0.00048845,103060.0,103050.0,0.75597215]
[1763028637117,0.00048845,103060.0,103050.0,0.61086766]
[1763028637719,0.00048845,103060.0,103050.0,0.31261054]
[1763028637955,0.01185845,103060.0,103050.0,0.57173766]
[1763028638189,0.20592016,103060.0,103050.0,0.59648054]
[1763028638414,0.20592016,103060.0,103050.0,0.25912054]
[1763028638623,0.21729016,103060.0,103050.0,0.25912054]
[1763028638859,0.02322845,103060.0,103050.0,0.58412054]
[1763028639044,0.21729016,103060.0,103050.0,0.58212054]
[1763028639419,0.21729016,103060.0,103050.0,0.57912054]
[1763028639586,0.21729016,103060.0,103050.0,0.58112054]
[1763028639789,0.21729016,103060.0,103050.0,0.56112054]
[1763028640080,0.21729016,103060.0,103050.0,0.57912054]
[1763028640443,0.21729016,103060.0,103050.0,0.58012054]
[1763028640671,0.21729016,103060.0,103050.0,0.04304]
[1763028641466,0.51554728,103060.0,103050.0,0.04304]
[1763028641674,0.21729016,103060.0,103050.0,0.04304]
[1763028641927,0.51554728,103060.0,103050.0,0.04304]
[1763028642850,0.51554728,103060.0,103050.0,0.04204]
[1763028643461,0.51554728,103060.0,103050.0,0.06204]
[1763028643664,0.51554728,103060.0,103050.0,0.04204]
[1763028643880,0.51554728,103060.0,103050.0,0.06204]
[1763028644074,0.51554728,103060.0,103050.0,0.04204]
[1763028644544,0.8138044,103060.0,103050.0,0.06204]
[1763028644693,0.51554728,103060.0,103050.0,0.06204]
[1763028644905,0.8138044,103060.0,103050.0,0.04204]
[1763028645155,0.51554728,103060.0,103050.0,0.04204]
[1763028645367,0.8138044,103060.0,103050.0,0.04204]
[1763028645786,0.8138044,103060.0,103050.0,0.06204]
[1763028645992,0.51554728,103060.0,103050.0,0.06204]
[1763028646407,0.21729016,103060.0,103050.0,0.23612054]
[1763028646618,0.51554728,103060.0,103050.0,0.04204]
[1763028647411,0.51554728,103060.0,103050.0,0.06204]
[1763028647620,0.51554728,103060.0,103050.0,0.23612054]
[1763028647818,0.51554728,103060.0,103050.0,0.04204]
[1763028648476,0.51554728,103060.0,103050.0,0.06204]
[1763028648689,0.51554728,103060.0,103050.0,0.04204]
[1763028648690,0.89306422,103060.0,103050.0,0.04204]
[1763028648924,0.19410755,103040.0,103030.0,0.19411821]
[1763028649131,0.21115755,103040.0,103030.0,0.25629797]
[1763028649353,0.22252755,103040.0,103030.0,0.25629797]
[1763028649559,0.251657,103040.0,103030.0,0.25629797]
[1763028649758,0.251657,103040.0,103030.0,0.06217976]
[1763028649961,0.251657,103040.0,103030.0,0.06417976]
[1763028650172,0.251657,103040.0,103030.0,0.04417976]
[1763028650376,0.54991412,103040.0,103030.0,0.04417976]
[1763028650592,0.19417265,103010.0,102980.0,0.00503674]
[1763028650805,0.19417265,103010.0,102970.0,0.00211898]
[1763028650806,0.19421246,102980.0,102970.0,0.00211898]
[1763028651044,0.50383958,102980.0,102970.0,0.00258504]
[1763028651292,0.54435983,102980.0,102970.0,0.00258504]
[1763028651701,0.24610271,102980.0,102970.0,0.00258504]
[1763028651925,0.24610271,102980.0,102970.0,0.02258504]
[1763028652134,0.24610271,102980.0,102970.0,0.00258504]
[1763028652345,0.24610271,102980.0,102970.0,0.19681636]
[1763028652570,0.54435983,102980.0,102970.0,0.00258504]
[1763028652988,0.67316298,102980.0,102970.0,0.00258504]
[1763028654410,0.73788462,102980.0,102970.0,0.00258504]
[1763028654620,0.67316298,102980.0,102970.0,0.00258504]
[1763028655460,0.67316298,102980.0,102970.0,0.02258504]
[1763028655686,0.67316298,102980.0,102970.0,0.00258504]
[1763028655896,0.67316298,102980.0,102970.0,0.02258504]
[1763028656082,0.67416298,102980.0,102970.0,0.02258504]
[1763028656346,0.67416298,102980.0,102970.0,0.00258504]
[1763028656565,0.67416298,102980.0,102970.0,0.02258504]
[1763028656765,0.67416298,102980.0,102970.0,0.00258504]
[1763028657417,0.67416298,102980.0,102970.0,0.02258504]
[1763028657661,0.67416298,102980.0,102970.0,0.00258504]
[1763028658309,0.67416298,102980.0,102970.0,0.02258504]
[1763028658989,0.67416298,102980.0,102970.0,0.00258504]
[1763028660067,0.67416298,102980.0,102970.0,0.21681636]
[1763028660274,0.67416298,102980.0,102970.0,0.02258504]
[1763028660486,0.67416298,102980.0,102970.0,0.00258504]
[1763028661625,0.24710271,102980.0,102970.0,0.00258504]
[1763028661839,0.67416298,102980.0,102970.0,0.00258504]
[1763028662042,0.67416298,102980.0,102970.0,0.19681636]
[1763028662252,0.67416298,102980.0,102970.0,0.00258504]
[1763028662465,0.23573271,102980.0,102970.0,0.21681636]
[1763028662889,0.24710271,102980.0,102970.0,0.21681636]
[1763028663911,0.67416298,102980.0,102970.0,0.00258504]
[1763028664361,0.67416298,102980.0,102970.0,0.02258504]
[1763028664567,0.67416298,102980.0,102970.0,0.00258504]
[1763028664764,0.67416298,102980.0,102970.0,0.02258504]
[1763028664938,0.24710271,102980.0,102970.0,0.02258504]
[1763028665351,0.24710271,102980.0,102970.0,0.19681636]
[1763028665534,0.24710271,102980.0,102970.0,0.21681636]
[1763028667155,0.26503774,102980.0,102970.0,0.19681636]
[1763028667535,0.26503774,102980.0,102970.0,0.02258504]
[1763028667749,0.26503774,102980.0,102970.0,0.21681636]
[1763028667964,0.26503774,102980.0,102970.0,0.00258504]
[1763028668161,0.26503774,102980.0,102970.0,0.21681636]
[1763028668352,0.26503774,102980.0,102970.0,0.02258504]
[1763028669182,0.26503774,102980.0,102970.0,0.19681636]
[1763028669395,0.26503774,102980.0,102970.0,0.21681636]
[1763028669778,0.26503774,102980.0,102970.0,0.02258504]
[1763028670413,0.26503774,102980.0,102970.0,0.21681636]
[1763028670615,0.26503774,102980.0,102970.0,0.02258504]
[1763028671479,0.26503774,102980.0,102970.0,0.21681636]
[1763028672739,0.04808528,102980.0,102970.0,0.69618663]
[1763028672943,0.001,102980.0,102970.0,1.18961006]
[1763028673150,0.001,102980.0,102970.0,0.89086821]
[1763028673360,0.001,102980.0,102970.0,1.16961006]
[1763028673571,0.001,102980.0,102970.0,1.18961006]
[1763028673808,0.04051317,103000.0,102970.0,1.18961006]
[1763028673809,0.04051317,103000.0,102990.0,0.21419361]
[1763028674021,0.04713205,103000.0,102990.0,0.58348546]
[1763028674241,0.01798888,103000.0,102990.0,0.60740546]
[1763028675263,0.21216363,103000.0,102990.0,0.58740546]
[1763028675418,0.01798888,103000.0,102990.0,0.58740546]
[1763028675636,0.01798888,103000.0,102990.0,0.60740546]
[1763028675838,0.01998888,103000.0,102990.0,0.60740546]
[1763028676450,0.01798888,103000.0,102990.0,0.60740546]
[1763028676669,0.01898888,103000.0,102990.0,0.60740546]
[1763028679162,0.21316363,103000.0,102990.0,0.60740546]
[1763028679370,0.01898888,103000.0,102990.0,0.60740546]
[1763028680592,0.21316363,103000.0,102990.0,0.60740546]
[1763028680788,0.01898888,103000.0,102990.0,0.60740546]
[1763028681704,0.21316363,103000.0,102990.0,0.60740546]
[1763028682112,0.22453363,103000.0,102990.0,0.05459]
[1763028682569,0.22453363,103000.0,102990.0,0.07459]
[1763028683377,0.01898888,103000.0,102990.0,0.58740546]
[1763028683528,0.01898888,103000.0,102990.0,0.60740546]
[1763028684377,0.01898888,103000.0,102990.0,0.58740546]
[1763028684711,0.01898888,103000.0,102990.0,0.60740546]
[1763028686813,0.21316363,103000.0,102990.0,0.60740546]
[1763028688539,0.01898888,103000.0,102990.0,0.58740546]
[1763028688752,0.21316363,103000.0,102990.0,0.60740546]
[1763028688954,0.01898888,103000.0,102990.0,0.60740546]
[1763028689618,0.21316363,103000.0,102990.0,0.60740546]
[1763028689953,0.21316363,103000.0,102990.0,0.30866361]
[1763028690170,0.21316363,103000.0,102990.0,0.60740546]
[1763028690595,0.21316363,103000.0,102990.0,0.58740546]
[1763028691354,0.21316363,103000.0,102990.0,0.60740546]
[1763028692813,0.21316363,103000.0,102990.0,0.58740546]
[1763028693046,0.21316363,103000.0,102990.0,0.60740546]
[1763028693660,0.22453363,103000.0,102990.0,0.26474361]
[1763028693870,0.21316363,103000.0,102990.0,0.39351185]
[1763028694050,0.21316363,103000.0,102990.0,0.60770546]
[1763028694286,0.19517475,103000.0,102990.0,0.60770546]
[1763028696268,0.19517475,103000.0,102990.0,0.11477]
[1763028696427,0.19517475,103000.0,102990.0,0.41351185]
[1763028696855,0.19517475,103000.0,102990.0,0.51302897]
[1763028697055,0.19517475,103000.0,102990.0,0.53302897]
[1763028697257,0.19517475,103000.0,102990.0,0.33883536]
[1763028697462,0.19517475,103000.0,102990.0,0.29461536]
[1763028697668,0.19517475,103000.0,102990.0,0.31461536]
[1763028698304,0.19517475,103000.0,102990.0,0.53302897]
[1763028698511,0.20654475,103000.0,102990.0,0.50880897]
[1763028698950,0.20654475,103000.0,102990.0,0.31461536]
[1763028699127,0.20654475,103000.0,102990.0,0.53302897]
[1763028699328,0.20654475,103000.0,102990.0,0.33883536]
[1763028699687,0.20654475,103000.0,102990.0,0.50880897]
[1763028699894,0.20654475,103000.0,102990.0,0.29865536]
[1763028700281,0.20654475,103000.0,102990.0,0.26878361]
[1763028700473,0.20654475,103000.0,102990.0,0.27865536]
[1763028700682,0.20654475,103000.0,102990.0,0.49284897]
[1763028701100,0.20654475,103000.0,102990.0,0.47284897]
[1763028701313,0.19419361,102990.0,102980.0,0.03243]
[1763028701522,0.20556361,102990.0,102980.0,0.29861536]
[1763028701775,0.20556361,102990.0,102980.0,0.27861536]
[1763028702356,0.20654475,103000.0,102980.0,0.29379536]
[1763028702558,0.21331218,103000.0,102990.0,0.41825897]
[1763028702760,0.21331218,103000.0,102990.0,0.21419361]
[1763028702986,0.22368218,103000.0,102990.0,0.21419361]
[1763028703187,0.20554475,103000.0,102990.0,0.21419361]
[1763028703936,0.19419361,102990.0,102980.0,0.04212]
[1763028704236,0.20556361,102990.0,102980.0,0.48039782]
[1763028704435,0.20556361,102990.0,102980.0,0.28618536]
[1763028704665,0.20556361,102990.0,102980.0,0.48039782]
[1763028705499,0.20556361,102990.0,102980.0,0.28618536]
[1763028706124,0.20556361,102990.0,102980.0,0.48039782]
[1763028706529,0.21693361,102990.0,102980.0,0.25633246]
[1763028706734,0.44099897,102990.0,102980.0,0.04212]
[1763028706959,0.01137,102990.0,102980.0,0.47282782]
[1763028707170,0.19419361,102990.0,102980.0,0.75629318]
[1763028707375,0.42961011,103000.0,102980.0,0.53222782]
[1763028707585,0.42961011,103000.0,102990.0,0.02]
[1763028707794,0.42961011,103000.0,102990.0,0.21419361]
[1763028708000,0.44098011,103000.0,102990.0,0.02]
[1763028708580,0.19419361,102990.0,102980.0,0.26876246]
[1763028708783,0.20556361,102990.0,102980.0,0.26876246]
[1763028709226,0.19421246,102980.0,102970.0,0.00258504]
[1763028709443,0.44101782,102980.0,102970.0,0.06466504]
[1763028709604,0.44101782,102980.0,102970.0,0.04466504]
[1763028709809,0.66508318,102980.0,102970.0,0.04466504]
[1763028711032,0.44201782,102980.0,102970.0,0.04466504]
[1763028711261,0.44201782,102980.0,102970.0,0.06466504]
[1763028711393,0.66608318,102980.0,102970.0,0.04466504]
[1763028711596,0.66608318,102980.0,102970.0,0.06466504]
[1763028711845,0.66608318,102980.0,102970.0,0.04466504]
[1763028712467,0.66608318,102980.0,102970.0,0.06466504]
[1763028712873,0.66608318,102980.0,102970.0,0.04466504]
[1763028713511,0.89014854,102980.0,102970.0,0.04466504]
[1763028713934,0.89014854,102980.0,102970.0,0.00258504]
[1763028715114,0.89014854,102980.0,102970.0,0.02258504]
[1763028715318,0.89014854,102980.0,102970.0,0.00258504]
[1763028715599,1.74428284,102980.0,102970.0,0.00258504]
[1763028716141,2.06728284,102980.0,102970.0,0.00258504]
[1763028716352,2.06628284,102980.0,102970.0,0.00258504]
[1763028716756,2.06828284,102980.0,102970.0,0.00258504]
[1763028721547,2.31078284,102980.0,102970.0,0.00258504]
[1763028721749,0.96639068,102980.0,102970.0,0.00258504]
[1763028721924,2.31078284,102980.0,102970.0,0.00258504]
[1763028722539,2.38437125,102980.0,102970.0,0.00258504]
[1763028726457,2.38437125,102980.0,102930.0,0.48099635]
[1763028726458,0.19428793,102940.0,102930.0,0.04048]
[1763028726657,0.66515865,102940.0,102930.0,0.04061589]
[1763028726866,0.99699349,102940.0,102930.0,0.04061589]
[1763028727456,0.90059401,102940.0,102930.0,0.04061589]
[1763028727662,0.90059401,102940.0,102930.0,0.04161589]
[1763028727868,0.90059401,102940.0,102930.0,0.04261589]
[1763028728049,0.90059401,102940.0,102930.0,0.04161589]
[1763028728251,0.90059401,102940.0,102930.0,0.04061589]
[1763028728448,0.99899349,102940.0,102930.0,0.04061589]
[1763028728891,1.04241223,102940.0,102930.0,0.04061589]
[1763028729892,1.08457223,102940.0,102930.0,0.04061589]
[1763028731924,1.75676831,102940.0,102930.0,0.04061589]
[1763028732150,2.07976831,102940.0,102930.0,0.04159441]
[1763028732687,2.097769,102940.0,102930.0,0.04159441]
[1763028735692,0.75337684,102940.0,102930.0,0.04159441]
[1763028735866,2.097769,102940.0,102930.0,0.04159441]
[1763028738606,2.12693572,102940.0,102930.0,0.04159441]
[1763028738763,2.12693572,102940.0,102930.0,4.41e-06]
[1763028738966,0.56072555,102930.0,102920.0,0.0004]
[1763028739163,1.41826619,102930.0,102920.0,0.00053987]
[1763028739364,2.10046226,102930.0,102920.0,0.00053987]
[1763028739757,2.12947457,102930.0,102920.0,0.00053987]
[1763028740156,2.13047457,102930.0,102920.0,0.00053987]
[1763028740992,2.13247457,102930.0,102920.0,0.00053987]
[1763028742153,0.19432568,102920.0,102910.0,0.0004]
[1763028742364,2.08887169,102920.0,102910.0,0.00086652]
[1763028742793,2.11804422,102920.0,102910.0,0.00086652]
[1763028743617,2.11904422,102920.0,102910.0,0.00086652]
[1763028744006,2.12004422,102920.0,102910.0,0.00086652]
[1763028745725,2.19461541,102920.0,102910.0,0.00086652]
[1763028746134,2.19461541,102920.0,102910.0,0.00135598]
[1763028747404,1.40564814,102920.0,102910.0,0.00135598]
[1763028747605,1.44784814,102920.0,102910.0,0.00135598]
[1763028748642,1.44784814,102920.0,102910.0,0.02135598]
[1763028748817,1.44784814,102920.0,102910.0,0.00135598]
[1763028749643,2.12004422,102920.0,102910.0,0.00135598]
[1763028750048,2.11983296,102920.0,102910.0,0.00135598]
[1763028750252,1.44763688,102920.0,102910.0,0.00135598]
[1763028751201,1.44767276,102920.0,102910.0,0.00135598]
[1763028753946,2.14076535,102920.0,102910.0,0.00135598]
[1763028755554,2.09856535,102920.0,102910.0,0.00135598]
[1763028755807,2.14072535,102920.0,102910.0,0.00135598]
[1763028756764,1.46852927,102920.0,102910.0,0.00135598]
[1763028758570,1.42636927,102920.0,102910.0,0.00135598]
[1763028758748,1.46852927,102920.0,102910.0,0.00135598]
[1763028758979,1.39509845,102920.0,102910.0,0.00135598]
[1763028760118,1.39509845,102920.0,102910.0,0.02135598]
[1763028760639,1.39509845,102920.0,102910.0,0.00135598]
[1763028762708,1.39509845,102920.0,102880.0,0.2467199]
[1763028762709,0.23780109,102890.0,102880.0,0.0004]
[1763028762929,1.02478513,102890.0,102880.0,0.0004]
[1763028763144,1.38010965,102890.0,102880.0,0.0004]
[1763028763359,1.38400063,102890.0,102880.0,0.0004]
[1763028763819,1.41019112,102890.0,102880.0,0.0004]
[1763028764269,1.39400062,102890.0,102870.0,0.0004]
[1763028764491,1.1389065,102880.0,102870.0,0.0004]
[1763028764735,1.18691027,102880.0,102870.0,0.0004]
[1763028764950,1.21609515,102880.0,102870.0,0.0004]
[1763028765143,1.31249463,102880.0,102870.0,0.0004]
[1763028766422,0.67933126,102880.0,102870.0,0.0004]
[1763028766636,0.65837674,102880.0,102870.0,0.0004]
[1763028767053,0.95775937,102880.0,102870.0,0.0004]
[1763028767283,0.95775937,102880.0,102870.0,0.0204]
[1763028767468,0.95775937,102880.0,102870.0,0.0004]
[1763028767699,0.95775937,102880.0,102870.0,0.0204]
[1763028767935,0.95775937,102880.0,102870.0,0.0004]
[1763028768837,0.95775937,102880.0,102870.0,0.0204]
[1763028769061,0.35899411,102880.0,102870.0,0.0204]
[1763028769308,0.95775937,102880.0,102870.0,0.0204]
[1763028769520,0.94874669,102880.0,102870.0,0.0204]
[1763028769963,0.64936406,102880.0,102870.0,0.02003802]
[1763028770174,0.64936406,102880.0,102870.0,3.802e-05]
[1763028770385,0.64936406,102880.0,102870.0,0.0010174]
[1763028770613,0.64936406,102880.0,102870.0,0.0210174]
[1763028770838,0.64936406,102880.0,102870.0,0.0010174]
[1763028771485,0.60716406,102880.0,102870.0,0.0210174]
[1763028771702,0.64936406,102880.0,102870.0,0.0210174]
[1763028772604,0.64936406,102880.0,102870.0,0.0010174]
[1763028773709,0.94874669,102880.0,102870.0,0.0210174]
[1763028773925,0.94874669,102880.0,102870.0,0.0010174]
[1763028774133,0.94874669,102880.0,102870.0,0.0210174]
[1763028774351,0.94874669,102880.0,102870.0,0.0010174]
[1763028776902,0.90654669,102880.0,102870.0,0.0210174]
[1763028777093,0.94874669,102880.0,102870.0,0.0210174]
[1763028777345,0.90654669,102880.0,102870.0,0.0010174]
[1763028777601,0.94874669,102880.0,102870.0,0.0010174]
[1763028778363,1.19124669,102880.0,102870.0,0.0010174]
[1763028778578,1.51424669,102880.0,102870.0,0.0010174]
[1763028779913,1.55027287,102880.0,102870.0,0.0010174]
[1763028780163,1.55027287,102880.0,102870.0,0.0210174]
[1763028780540,1.51424669,102880.0,102870.0,0.0210174]
[1763028781006,1.51424669,102880.0,102870.0,0.0010174]
[1763028781370,0.19442014,102870.0,102860.0,0.0004]
[1763028781574,0.88220495,102870.0,102860.0,0.0004]
[1763028781969,0.91139198,102870.0,102860.0,0.0004]
[1763028782818,1.23439198,102870.0,102860.0,0.0004]
[1763028783186,1.23539198,102870.0,102860.0,0.0004]
[1763028783365,1.30540369,102870.0,102860.0,0.0004]
[1763028783608,1.30540363,102870.0,102860.0,0.0004]
[1763028783868,1.30640363,102870.0,102860.0,0.0004]
[1763028784235,0.70763837,102870.0,102860.0,0.0004]
[1763028784548,1.30640363,102870.0,102860.0,0.0004]
[1763028787305,1.31630736,102870.0,102860.0,0.0004]
[1763028789916,1.3353551,102870.0,102860.0,0.0004]
[1763028790275,1.35628455,102870.0,102860.0,0.0004]
[1763028791543,1.39848455,102870.0,102860.0,0.0004]
[1763028792156,1.35628455,102870.0,102860.0,0.00064491]
[1763028792361,1.39848455,102870.0,102860.0,0.00064491]
[1763028794199,1.35628455,102870.0,102860.0,0.00064491]
[1763028794402,1.39848455,102870.0,102860.0,0.00064491]
[1763028794798,1.35628455,102870.0,102860.0,0.00064491]
[1763028795208,1.0791982,102870.0,102860.0,0.00064491]
[1763028795409,1.0369982,102870.0,102860.0,0.00064491]
[1763028795693,0.9792543,102870.0,102860.0,0.02064491]
[1763028795882,0.9792543,102870.0,102860.0,0.00064491]
[1763028796082,0.98831423,102870.0,102860.0,0.00064491]
[1763028796289,0.94611423,102870.0,102860.0,0.00064491]
[1763028796492,0.98831423,102870.0,102860.0,0.00064491]
[1763028796703,0.96707103,102870.0,102860.0,0.00064491]
[1763028796944,1.00927103,102870.0,102860.0,0.00064491]
[1763028797324,0.99991053,102870.0,102860.0,0.00064491]
[1763028797528,1.04211053,102870.0,102860.0,0.02064491]
[1763028797741,0.98831423,102870.0,102860.0,0.00064491]
[1763028798177,0.99787518,102870.0,102860.0,0.00064491]
[1763028798385,0.9792543,102870.0,102860.0,0.00064491]
[1763028798569,0.98831379,102870.0,102860.0,0.00064491]
[1763028800036,0.98831379,102870.0,102860.0,0.02064491]
[1763028800756,0.9792543,102870.0,102860.0,0.02064491]
[1763028801162,0.9792543,102870.0,102860.0,0.00064491]
[1763028801927,1.43751611,102870.0,102860.0,0.00064491]
[1763028802125,1.4484787,102870.0,102860.0,0.00064491]
[1763028803034,1.45847869,102870.0,102860.0,0.00064491]
[1763028808821,1.45847869,102870.0,102860.0,4.91e-06]
[1763028810989,1.49461356,102870.0,102860.0,4.91e-06]
[1763028812576,1.48461357,102870.0,102860.0,4.91e-06]
[1763028813009,1.49461356,102870.0,102860.0,4.91e-06]
[1763028818765,1.49473521,102870.0,102860.0,4.91e-06]